[Event "Chinese Team-ch Men 2025"]
[Site "Zhang Jiakou Hebei"]
[Date "2025.05.01"]
[Round "7.30"]
[White "Zhang, Ziji"]
[Black "Sun, Chao"]
[Result "1-0"]
[Annotator "ChessBase"]
[ECO "E59"]
[WhiteElo "2371"]
[BlackElo "2211"]
[PlyCount "75"]
[EventDate "2025.04.26"]
[EventType "team-tourn"]
[EventCountry "CHN"]
[SourceTitle "playchess.com"]
[Source "ChessBase"]
[SourceQuality "1"]
[TimeControl "5400+30"]

1. d4 {[%emt 0:00:05]} Nf6 {[%emt 0:00:09]} 2. c4 {[%emt 0:01:19]} e6 {[%emt 0:00:07]} 3. Nf3 {[%emt 0:01:56]} d5 {[%emt 0:00:22]} 4. Nc3 {[%emt 0:00:26]} Bb4 {[%emt 0:00:15]} 5. e3 {[%emt 0:00:40]} O-O {[%emt 0:01:15]} 6. Bd3 {[%emt 0:00:48]} dxc4 {[%emt 0:02:47]} 7. Bxc4 {[%emt 0:00:06]} c5 {[%emt 0:00:07]} 8. O-O {[%emt 0:00:24]} Nc6 {[%emt 0:00:26]} 9. a3 {[%emt 0:02:14]} Bxc3 {[%emt 0:00:09]} 10. bxc3 {[%emt 0:00:07]} Qc7 {[%emt 0:01:13]} 11. Be2 {[%emt 0:26:30]} Rd8 {[%emt 0:22:44]} 12. c4 {[%emt 0:00:00]} b6 {[%emt 0:00:51]} 13. Bb2 {[%emt 0:00:00]} Bb7 {[%emt 0:00:26]} 14. Qc2 {[%emt 0:02:25]} cxd4 {[%emt 0:04:01]} 15. exd4 {[%emt 0:00:35]} Ne7 {[%emt 0:02:26]} 16. Ne5 {[%emt 0:12:49]} Nc6 {[%emt 0:02:54]} 17. Nf3 {[%emt 0:05:50]} Ne7 {[%emt 0:00:14]} 18. Ne5 {[%emt 0:01:35]} Nc6 {[%emt 0:00:12]} 19. Nxc6 {[%emt 0:02:15]} Qxc6 {[%emt 0:00:09]} 20. Bf3 {[%emt 0:00:08]} Qc7 {[%emt 0:00:15]} 21. Bxb7 {[%emt 0:01:09]} Qxb7 {[%emt 0:00:06]} 22. Qb3 {[%emt 0:00:23]} b5 {[%emt 0:16:01]} 23. d5 {[%emt 0:12:45]} exd5 {[%emt 0:01:16]} 24. Bxf6 {[%emt 0:00:22]} gxf6 {[%emt 0:00:04]} 25. cxb5 {[%emt 0:00:09]} d4 {[%emt 0:01:46]} 26. Rfd1 {[%emt 0:01:56]} Kh8 {[%emt 0:07:38]} 27. a4 {[%emt 0:05:09]} Rd6 {[%emt 0:04:42]} 28. Rac1 {[%emt 0:07:28]} Rg8 {[%emt 0:03:49]} 29. g3 {[%emt 0:00:12]} a6 {[%emt 0:00:05]} 30. Rc5 {[%emt 0:02:40]} Rg5 {[%emt 0:00:10]} 31. Rxg5 {[%emt 0:01:41]} fxg5 {[%emt 0:00:05]} 32. Qb4 {[%emt 0:00:04]} Qd5 {[%emt 0:11:01]} 33. bxa6 {[%emt 0:00:58]} Kg7 {[%emt 0:01:57]} 34. a7 {[%emt 0:00:56]} Ra6 {[%emt 0:00:09]} 35. Rxd4 {[%emt 0:00:17]} Qe5 {[%emt 0:00:16]} 36. Rd7 {[%emt 0:04:41]} Qa1+ {[%emt 0:01:12]} 37. Kg2 {[%emt 0:00:03]} Rxa4 {[%emt 0:00:05]} 38. Qb3 {[%emt 0:00:28]} 1-0